{"text_format":"1","workbook":"xlsx","n_sheets":4,"sheets":["Dataset","VBA","Manual","Practice"],"not_rendered":{"charts":0,"images":0,"macros":1,"external_links":0,"defined_names":3,"comments":0,"pivot_tables":0},"unopened":[],"bounds":{"document_bytes":16777216,"sheet_cells":100000,"rows_first":2000,"rows_last":500,"rows_between":2000,"halvings":0,"cell_chars":16384,"cell_head_chars":4096},"cells_cut":0,"cells_raw":0,"read":"whole","date_system":"1900"}

{"sheet":"Dataset","index":0,"n_rows":11,"n_cols":5,"rows_kept":11,"cut":false,"hidden":false,"merged":[[1,1,1,4],[10,1,10,2]]}
[]
[null,"Excel Names not in Name Manager"]
[]
[null,"Product","Amount(lb)","Price/lb","Total"]
[null,"Grapes",2,30,{"$f":"C5*D5","v":60}]
[null,"Banana",3,5,{"$f":"C6*D6","v":15}]
[null,"Apple",8,10,80]
[null,"Orange",2,15,30]
[null,"Strawberry",4,20,80]
[]
[null,"Grand Total Amount",null,{"$f":"SUM(Amounts)","v":19}]

{"sheet":"VBA","index":1,"n_rows":11,"n_cols":5,"rows_kept":11,"cut":false,"hidden":false,"merged":[[1,1,1,4]]}
[]
[null,"Excel Names not in Name Manager"]
[]
[null,"Product","Amount(lb)","Price/lb","Total"]
[null,"Grapes",2,30,{"$f":"C5*D5","v":60}]
[null,"Banana",3,5,{"$f":"C6*D6","v":15}]
[null,"Apple",8,10,80]
[null,"Orange",2,15,30]
[null,"Strawberry",4,20,80]
[]
[null,null,{"$f":"SUM(Amounts)","v":19}]

{"sheet":"Manual","index":2,"n_rows":11,"n_cols":5,"rows_kept":11,"cut":false,"hidden":false,"merged":[[1,1,1,4]]}
[]
[null,"Excel Names not in Name Manager"]
[]
[null,"Product","Amount(lb)","Price/lb","Total"]
[null,"Grapes",2,30,{"$f":"C5*D5","v":60}]
[null,"Banana",3,5,{"$f":"C6*D6","v":15}]
[null,"Apple",8,10,80]
[null,"Orange",2,15,30]
[null,"Strawberry",4,20,80]
[]
[null,null,{"$f":"SUM(Amounts)","v":19}]

{"sheet":"Practice","index":3,"n_rows":11,"n_cols":5,"rows_kept":11,"cut":false,"hidden":false,"merged":[[1,1,1,4]]}
[]
[null,"Do It Yourself"]
[]
[null,"Product","Amount(lb)","Price/lb","Total"]
[null,"Grapes",2,30,{"$f":"C5*D5","v":60}]
[null,"Banana",3,5,{"$f":"C6*D6","v":15}]
[null,"Apple",8,10,80]
[null,"Orange",2,15,30]
[null,"Strawberry",4,20,80]
[]
[null,null,{"$f":"SUM(Amounts)","v":19}]